lending/lending_fUSD_20240926
["ID","MTS","AMOUNT","RATE_DAILY","PERIOD"]
[339230678,1727382634880,-150.0,0.00012871,2]
[339230679,1727382634891,-2036.95771513,0.0001289,2]
[339230680,1727382634905,-17770.5009972,0.00012895,2]
[339230681,1727382634917,-236.46219738,0.00012896,2]
[339230682,1727382634929,-840046.10866586,0.00012897,3]
[339230683,1727382634945,-52594.15252274,0.00012897,3]
[339230684,1727382634960,-2408.87747833,0.00012897,3]
[339230685,1727382634974,-19289.99999953,0.00012897,3]
[339230686,1727382634989,-501.23538144,0.00012897,3]
[339230687,1727382635005,-2903.71306986,0.00012897,3]
[339230688,1727382635022,-3421.55845167,0.00012897,3]
[339230689,1727382635039,-2228.53585342,0.00012897,3]
[339230690,1727382635053,-72374.20215191,0.00012897,3]
[339230691,1727382635067,-156978.38619282,0.00012897,3]
[339230692,1727382635078,-1697.0288294,0.00012897,3]
[339230693,1727382635097,-1339.32568212,0.00012897,3]
[339230694,1727382635110,-2712.16487565,0.00012897,3]
[339230695,1727382635379,-6683.26958659,0.00012897,3]
[339230696,1727382635398,-474.46635641,0.00012897,3]
[339230697,1727382635409,-7453.55953814,0.00012897,3]
[339230698,1727382635421,-787.72537109,0.00012897,3]
[339230699,1727382635432,-809.14403611,0.00012897,3]
[339230700,1727382635443,-2862.03116841,0.00012897,3]
[339230701,1727382635454,-4036.74748476,0.00012897,3]
[339230702,1727382635467,-14664.77099999,0.00012897,3]
[339230703,1727382635478,-910.67391534,0.00012897,3]
[339230704,1727382635490,-636.79253411,0.00012897,3]
[339230705,1727382635501,-1783.20741457,0.00012897,3]
[339230706,1727382635514,-1594.44501813,0.00012897,3]
[339230707,1727382635525,-497.48514,0.00012897,3]
[339230708,1727382635537,-315.0,0.00012897,3]
[339230709,1727382635554,-1273.680256,0.00012897,3]
[339230710,1727382635563,-189.23522239,0.00012899,2]
[339230711,1727382635573,-260.16686337,0.00012899,3]
[339230712,1727382635584,-1235.6162073,0.00012899,3]
[339230713,1727382635593,-146.33569827,0.00012899,2]
[339230714,1727382635604,-712.02367317,0.00012899,2]
[339230715,1727382635618,-141.64062856,0.00012899,2]
[339230716,1727382635627,-1000.0,0.00012899,2]
[339230717,1727382635637,-862.27,0.00012899,2]
[339230718,1727382635646,-533.0,0.000129,2]
[339230719,1727382635656,-7388.82422968,0.000129,2]
[339230720,1727382635667,-9867.46314013,0.000129,2]
[339230721,1727382635686,-603.91888408,0.000129,2]
[339230734,1727382637599,-557.38653135,0.00012697,2]
[339230735,1727382637637,-358.48667185,0.00012697,2]
[339230736,1727382637649,-301.12664511,0.00012697,2]
[339230737,1727382637696,-527.64851962,0.00012697,2]
[339230738,1727382637707,-1119.76743207,0.00012697,2]
[339230739,1727382637717,-9307.3080503,0.000129,2]
[339230740,1727382637729,-7768.1384,0.000129,2]
[339230741,1727382637740,-7546.2938,0.000129,2]
[339230742,1727382637751,-17006.65070178,0.000129,2]
[339230743,1727382637799,-3.10393003,0.000129,2]
[339230744,1727382637815,-18974.0009733,0.000129,2]
[339230745,1727382637827,-752.92921906,0.000129,2]
[339230746,1727382637838,-352.52727591,0.000129,2]
[339230747,1727382637848,-749.4970653,0.000129,2]
[339230748,1727382638032,-256.9894911,0.000129,2]
[339230877,1727382639399,-300.59930483,0.000129,2]
[339230879,1727382639410,-54126.41486008,0.000129,2]
[339230881,1727382639421,-11953.20000001,0.000129,2]
[339230883,1727382639432,-8467.04682707,0.000129,2]
[339230899,1727382639994,-324.43,0.000129,2]
[339230911,1727382640491,-1162.05821084,0.000129,2]
[339231025,1727382641551,11510.0,0.000103,5]
[339231119,1727382642428,-13190.16168377,0.000129,2]
[339231133,1727382642539,-827.19049739,0.000129,2]
[339231135,1727382642551,-760.21,0.000129,2]
[339231137,1727382642562,-1700.6,0.000129,2]
[339231141,1727382642595,-4330.59626476,0.000129,2]
[339231143,1727382642606,-599.65000005,0.000129,2]
[339231146,1727382642617,-78264.16069596,0.000129,2]
[339231148,1727382642627,-367503.50667891,0.000129,2]
[339231150,1727382642636,-1000.0,0.000129,2]
[339231152,1727382642645,-150.0,0.000129,2]
[339231154,1727382642654,-2066.1,0.000129,2]
[339231156,1727382642663,-6873.8248971,0.000129,2]
[339231158,1727382642672,-208371.04930196,0.000129,2]
[339231160,1727382642684,-483.05719049,0.000129,2]
[339231163,1727382642703,-1075.19585022,0.000129,2]
[339231165,1727382642714,-715.43335499,0.000129,2]
[339231180,1727382642724,-427.149998,0.000129,2]
[339231187,1727382642898,-717.9,0.000129,2]
[339231190,1727382642910,-63286.99999999,0.000129,2]
[339231192,1727382642921,-408.14364787,0.000129,2]
[339231203,1727382643020,-547.46957672,0.000129,2]
[339231206,1727382643032,-4970.15451879,0.000129,2]
[339231243,1727382645377,-8015.90949981,0.000129,2]
[339231244,1727382645445,-739.3446324,0.000129,2]
[339231245,1727382645456,-1000.0,0.000129,2]
[339231246,1727382645543,-9656.38023301,0.000129,2]
[339231247,1727382645600,-14880.0,0.000129,2]
[339231248,1727382695025,600.0,0.00010068,2]
[339231249,1727382758030,410.9818888,0.00011064,2]
[339231250,1727382770873,446.1,9.746e-05,2]
[339231251,1727382923429,184.44822387,0.00011064,2]
[339231252,1727382997533,281.53,0.00010959,2]
[339231253,1727383254680,150.0,0.0001389,30]
[339231254,1727383306207,423.79,9.357e-05,2]
[339231261,1727383684682,749.49,0.00010959,2]
[339231269,1727383802917,150.0,0.00010959,2]
[339231270,1727383803143,150.0,0.00010959,2]
[339231271,1727383803344,150.0,0.00010959,2]
[339231272,1727383803574,150.0,0.00010959,2]
[339231273,1727383804060,150.0,0.00010959,2]
[339231274,1727383804271,150.0,0.00010959,2]
[339231275,1727383804488,150.0,0.00010959,2]
[339231276,1727383804698,150.0,0.00010959,2]
[339231277,1727383804930,150.0,0.00010959,2]
[339231278,1727383805136,150.0,0.00010959,2]
[339231279,1727383805363,150.0,0.00010959,2]
[339231280,1727383805975,150.0,0.00010959,2]
[339231281,1727383806035,150.0,0.00010959,2]
[339231282,1727383806098,150.0,0.00010959,2]
[339231283,1727383806226,150.0,0.00010959,2]
[339231284,1727383806438,150.0,0.00010959,2]
[339231285,1727383806670,154.67203195,0.00010959,2]
[339231287,1727383828269,1050.0,0.00011,2]
[339231298,1727383831555,-536.83568415,0.00011164,2]
[339231299,1727383831567,-52.19050999,0.00011164,2]
[339231300,1727383831577,-500.0,0.00011164,2]
[339231301,1727383831587,-2275.09,0.00011183,2]
[339231302,1727383831596,-217.75,0.00011208,2]
[339231303,1727383831606,-800.0,0.00011217,2]
[339231304,1727383831615,-5861.08,0.00011217,2]
[339231305,1727383831624,-4345.02,0.00011222,2]
[339231306,1727383831634,-250.0,0.00011224,2]
[339231307,1727383831643,-1087.43,0.0001124,2]
[339231308,1727383831652,-2479.17,0.00011251,2]
[339231309,1727383831662,-250.0,0.00011261,2]
[339231310,1727383831671,-155.73,0.00011262,2]
[339231311,1727383831681,-250.0,0.00011275,2]
[339231312,1727383831692,-200.0,0.00011299,2]
[339231313,1727383831702,-278.73,0.00011307,2]
[339231314,1727383831711,-450.0,0.00011311,2]
[339231315,1727383831720,-2000.0,0.00011326,2]
[339231316,1727383831730,-150.99,0.00011326,2]
[339231317,1727383831740,-166.83,0.00011392,2]
[339231318,1727383831749,-600.0,0.00011438,2]
[339231319,1727383831758,-189.26,0.00011451,2]
[339231320,1727383831768,-200.0,0.00011487,2]
[339231321,1727383831777,-189.26,0.00011508,2]
[339231322,1727383831787,-327.67,0.00011516,2]
[339231323,1727383831796,-150.0,0.00011589,2]
[339231324,1727383831806,-150.0,0.00011589,2]
[339231325,1727383831815,-150.0,0.00011589,2]
[339231326,1727383831825,-150.0,0.00011589,2]
[339231327,1727383831837,-150.0,0.00011589,2]
[339231328,1727383831847,-423.79,0.00011621,2]
[339231329,1727383831856,-187.27,0.00011836,2]
[339231330,1727383831865,-150.0,0.000119,2]
[339231331,1727383831877,-300.0,0.000119,4]
[339231332,1727383831886,-600.0,0.00012,4]
[339231333,1727383831896,-900.0,0.000121,4]
[339231334,1727383831908,-1200.0,0.000122,4]
[339231335,1727383831918,-811.18549,0.00012212,2]
[339231336,1727383831929,-514.778447,0.00012212,2]
[339231337,1727383831938,-152.632682,0.00012212,2]
[339231338,1727383831947,-156.11362,0.00012212,2]
[339231339,1727383831956,-150.0,0.000123,2]
[339231340,1727383831965,-1500.0,0.000123,4]
[339231341,1727383831975,-2525.53,0.00012329,2]
[339231342,1727383831984,-811.18549,0.00012365,2]
[339231343,1727383831994,-514.778447,0.00012365,2]
[339231344,1727383832003,-300.0,0.000124,4]
[339231345,1727383832012,-193.4,0.00012445,2]
[339231346,1727383832021,-300.0,0.000125,4]
[339231347,1727383832030,-811.18549,0.00012517,2]
[339231348,1727383832039,-514.778447,0.00012517,2]
[339231349,1727383832048,-500.0,0.00012534,2]
[339231350,1727383832057,-300.0,0.000126,4]
[339231351,1727383832067,-1215.0,0.000126,2]
[339231352,1727383832076,-800.0,0.00012619,2]
[339231353,1727383832085,-811.18549,0.0001267,2]
[339231354,1727383832095,-514.778447,0.0001267,2]
[339231355,1727383832104,-9501.0269,0.000127,2]
[339231356,1727383832114,-480.2651,0.000127,2]
[339231357,1727383832123,-4902.3115,0.000127,2]
[339231359,1727383832132,-289.37898651,0.000127,2]
[339231361,1727383832142,-300.0,0.000127,4]
[339231363,1727383832151,-2916.7875,0.000127,2]
[339231365,1727383832160,-2450.3223,0.000127,2]
[339231367,1727383832168,-5654.96280968,0.000127,2]
[339231369,1727383832180,-5654.9628096,0.00012711,2]
[339231371,1727383832192,-289.37898644,0.00012714,2]
[339231373,1727383832200,-278.73,0.0001272,2]
[339231375,1727383832209,-5654.9628096,0.00012722,2]
[339231377,1727383832218,-289.37898644,0.00012729,2]
[339231379,1727383832226,-5654.9628096,0.00012733,2]
[339231380,1727383832235,-289.37898644,0.00012743,2]
[339231382,1727383832244,-289.37898644,0.00012757,2]
[339231384,1727383832253,-500.0,0.00012771,2]
[339231386,1727383832262,-41346.27902869,0.00012771,2]
[339231389,1727383832278,-2333.72097131,0.00012771,2]
[339231391,1727383832287,-104.27536273,0.00012771,2]
[339231393,1727383832298,-185.10362371,0.00012771,2]
[339231395,1727383832307,-289.37898644,0.00012786,2]
[339231397,1727383832316,-500.0,0.00012797,2]
[339231399,1727383832325,-7105.19253143,0.00012797,2]
[339231401,1727383832337,-428.45648914,0.00012797,2]
[339231403,1727383832350,-711.01118688,0.00012797,2]
[339231406,1727383832361,-1827.91072361,0.00012797,2]
[339231410,1727383832390,-3800.78676894,0.00012797,2]
[339231412,1727383832399,-1915.15,0.00012797,2]
[339231414,1727383832408,-44361.2008,0.00012797,2]
[339231416,1727383832417,-15406.67,0.000128,2]
[339231418,1727383832431,-3622.065053,0.000128,2]
[339231420,1727383832442,-1092.85082834,0.000128,2]
[339231422,1727383832453,-54884.18423923,0.000128,2]
[339231424,1727383832464,-650.88918,0.000128,2]
[339231426,1727383832475,-600.0,0.000128,2]
[339231428,1727383832486,-5500.77126725,0.000128,2]
[339231430,1727383832497,-2686.65209013,0.000128,2]
[339231433,1727383832507,-8774.31523528,0.000128,2]
[339231435,1727383832518,-1181.26213134,0.000128,2]
[339231437,1727383832528,-978.62989679,0.000128,2]
[339231439,1727383832539,-686.70513767,0.000128,2]
[339231441,1727383832551,-1132.38722525,0.000128,2]
[339231443,1727383832562,-4221.79258543,0.000128,2]
[339231446,1727383832575,-6000.0,0.000128,2]
[339231448,1727383832590,-549.00973517,0.000128,2]
[339231450,1727383832601,-4756.59779512,0.000128,2]
[339231452,1727383832610,-2454.40220488,0.000128,2]
[339231454,1727383832622,-9045.82629512,0.000128,2]
[339231455,1727383832631,-6243.2312,0.000128,2]
[339231456,1727383832640,-174.3002,0.000128,2]
[339231457,1727383832649,-1723.4823,0.000128,2]
[339231458,1727383832659,-1000.0,0.000128,2]
[339231459,1727383832668,-176.76676772,0.000128,2]
[339231460,1727383832681,-289.37898644,0.000128,2]
[339231461,1727383832690,-600.0,0.000128,4]
[339231462,1727383832699,-926.08055544,0.000128,2]
[339231463,1727383832708,-322.20825632,0.000128,2]
[339231464,1727383832718,-1441.26206287,0.000128,2]
[339231465,1727383832727,-11313.16427853,0.000128,2]
[339231466,1727383832737,-600.0,0.00012808,2]
[339231467,1727383832746,-305.6,0.00012808,2]
[339231468,1727383832755,-811.18549,0.00012823,2]
[339231469,1727383832765,-514.778447,0.00012823,2]
[339231470,1727383832774,-516.5994,0.00012835,2]
[339231471,1727383832784,-500.0,0.00012873,2]
[339231472,1727383832793,-150.0,0.00012877,2]
[339231473,1727383832802,-162.25,0.0001289,2]
[339231474,1727383832812,-826.35,0.00012896,2]
[339231475,1727383832821,-1420.0,0.00012898,2]
[339231476,1727383832834,-150.486,0.00012898,2]
[339231477,1727383832843,-933.0,0.00012898,2]
[339231478,1727383832853,-808.0,0.00012898,2]
[339231479,1727383832863,-561.512,0.00012898,2]
[339231480,1727383832872,-150.0,0.00012898,2]
[339231481,1727383832881,-1086.316,0.00012898,2]
[339231482,1727383832890,-227.2342386,0.00012899,2]
[339231483,1727383832899,-500.0,0.00012899,2]
[339231484,1727383832908,-162.92436218,0.00012899,2]
[339231485,1727383832917,-1000.0,0.00012899,2]
[339231486,1727383832927,-1000.0,0.00012899,2]
[339231487,1727383832936,-1000.0,0.00012899,2]
[339231488,1727383832945,-370577.34455959,0.000129,2]
[339231489,1727383832956,-8139.8589404,0.000129,2]
[339231490,1727383832967,-305.01117388,0.000129,2]
[339231491,1727383833193,-3935.84933377,0.000129,2]
[339231492,1727383833204,-4700.0,0.000129,2]
[339231493,1727383833215,-3603.53690901,0.000129,2]
[339231494,1727383833226,-2497.50370162,0.000129,2]
[339231495,1727383837709,-462.45588772,0.00012744,2]
[339231496,1727383837720,-461.27657119,0.00012744,2]
[339231497,1727383837769,-925.56170541,0.00012744,2]
[339231498,1727383837780,-3805.66864528,0.00012744,2]
[339231499,1727383837790,-4152.8732113,0.000129,2]
[339231500,1727383837832,-6016.27157419,0.000129,2]
[339231501,1727383837843,-317.83761624,0.000129,2]
[339231502,1727383837854,-6470.20833297,0.000129,2]
[339231503,1727383837866,-729.66,0.000129,2]
[339231504,1727383837882,-7816.78613279,0.000129,2]
[339231505,1727383837903,-1107.26906967,0.000129,2]
[339231506,1727383837922,-5340.98495427,0.000129,2]
[339231507,1727383837938,-338.26352533,0.000129,2]
[339231508,1727383837952,-2644.17619719,0.000129,2]
[339231509,1727383837998,-84295.41652315,0.000129,2]
[339231510,1727383838008,-15013.43,0.000129,2]
[339231511,1727383838018,-712837.82418794,0.000129,2]
[339231512,1727383838030,-400.0,0.000129,2]
[339231676,1727383839554,-5859.46811615,0.000129,2]
[339231683,1727383839611,-1542.596995,0.000129,2]
[339231685,1727383839623,-1341.45000002,0.000129,2]
[339231688,1727383839635,-262.894995,0.000129,2]
[339231690,1727383839647,-6564.8223725,0.000129,2]
[339231693,1727383839667,-255.4974,0.000129,2]
[339231695,1727383839681,-302.2027,0.000129,2]
[339231697,1727383839692,-1505.04594099,0.000129,2]
[339231710,1727383839839,-13316.1104248,0.000129,2]
[339231712,1727383839851,-31238.89417484,0.000129,2]
[339231715,1727383839900,-435.70126459,0.000129,2]
[339231716,1727383839912,-3019.94065747,0.000129,2]
[339231975,1727383842580,-5654.9628096,0.00012756,2]
[339231978,1727383842589,-477778.94159145,0.000129,2]
[339231990,1727383842689,-211371.97607568,0.000129,2]
[339231997,1727383842746,-388.43537505,0.000129,2]
[339232004,1727383842803,-603.62491081,0.000129,2]
[339232006,1727383842814,-550.91061296,0.000129,2]
[339232009,1727383842827,-642.70249532,0.000129,2]
[339232028,1727383843000,-1109.25964547,0.000129,2]
[339232032,1727383843026,-26580.66070369,0.000129,2]
[339232039,1727383843084,-382.92113158,0.000129,2]
[339232302,1727383845676,-1301.40014518,0.000129,2]
[339232315,1727383845788,-3208.80643389,0.000129,2]
[339232373,1727383877694,543.88,0.00010065,2]
[339232374,1727383902682,150.0,0.0001389,30]
[339232375,1727383977523,255.1122,0.00011064,2]
[339232377,1727384182568,152.13,0.00010959,2]
[339232378,1727384411065,-279.78,0.00011154,2]
[339232379,1727384411091,-500.0,0.00011164,2]
[339232380,1727384411118,-500.0,0.00011164,2]
[339232381,1727384411143,-217.75,0.00011752,2]
[339232382,1727384411169,-1000.0,0.00011755,2]
[339232383,1727384411194,-166.01,0.00011779,2]
[339232384,1727384411220,-155.74,0.00011814,2]
[339232385,1727384411246,-250.0,0.00011834,2]
[339232386,1727384411274,-200.0,0.000119,4]
[339232387,1727384411300,-500.0,0.00012,4]
[339232388,1727384421562,516.68,9.95e-05,2]
[339232389,1727384455769,500.0,0.00011164,2]
[339232390,1727384461059,500.0,0.00011164,2]
[339232391,1727384480573,150.0,0.0001389,30]
[339232392,1727384580349,262.13,0.0001186,2]
[339232393,1727384661324,250.0,0.0001188,2]
[339232394,1727384705847,150.0,0.00011589,2]
[339232401,1727384752063,200.0,0.00011945,2]
[339232402,1727384775952,161.92,0.00010959,2]
[339232403,1727384852796,5004.95606389,0.00015,30]
[339232414,1727385031812,-516.68,0.00012214,2]
[339232415,1727385031824,-500.0,0.00012534,2]
[339232416,1727385031834,-500.0,0.00012534,2]
[339232417,1727385031843,-850.9456,0.000127,2]
[339232418,1727385031853,-8411.04402938,0.00012743,2]
[339232419,1727385031870,-478.31588386,0.00012743,2]
[339232420,1727385031882,-844.4503927,0.00012743,2]
[339232421,1727385031893,-5185.41834052,0.00012743,2]
[339232422,1727385031933,-109.65135354,0.00012743,2]
[339232423,1727385031943,-152.0,0.00012771,3]
[339232424,1727385031953,-3438.24540617,0.00012778,2]
[339232425,1727385031964,-4522.06617273,0.00012778,2]
[339232426,1727385031976,-6957.5384211,0.00012778,2]
[339232427,1727385031986,-500.0,0.00012797,2]
[339232428,1727385031996,-150.0,0.00012799,2]
[339232429,1727385032006,-788.16391265,0.000128,2]
[339232430,1727385032018,-637.70410917,0.000128,2]
[339232431,1727385032033,-4675.59495334,0.000128,2]
[339232432,1727385032078,-1299.333284,0.000128,2]
[339232433,1727385032090,-481.66205256,0.000128,2]
[339232434,1727385032106,-251.35461498,0.000128,2]
[339232435,1727385032173,-2778.52655934,0.000128,2]
[339232436,1727385032185,-17764.8857154,0.000128,2]
[339232437,1727385032194,-2836.3807,0.000128,2]
[339232438,1727385032204,-184.35536652,0.000128,2]
[339232439,1727385032214,-1080.0,0.00012803,2]
[339232440,1727385032224,-244.48,0.00012826,2]
[339232441,1727385032236,-186.67744967,0.0001289,2]
[339232442,1727385032247,-152.85,0.0001289,2]
[339232443,1727385032257,-186.67744967,0.0001289,2]
[339232444,1727385032266,-152.85,0.0001289,2]
[339232445,1727385032277,-152.85,0.0001289,2]
[339232446,1727385032287,-152.85,0.0001289,2]
[339232448,1727385032296,-152.85,0.0001289,2]
[339232450,1727385032305,-152.85,0.0001289,2]
[339232452,1727385032319,-152.85,0.0001289,2]
[339232454,1727385032328,-152.85,0.0001289,2]
[339232456,1727385032338,-152.85,0.0001289,2]
[339232458,1727385032347,-152.85,0.0001289,2]
[339232460,1727385032356,-152.85,0.0001289,2]
[339232461,1727385032366,-152.85,0.0001289,2]
[339232462,1727385032376,-152.85,0.0001289,2]
[339232464,1727385032386,-152.85,0.0001289,2]
[339232466,1727385032395,-152.85,0.0001289,2]
[339232468,1727385032404,-152.85,0.0001289,2]
[339232470,1727385032414,-152.85,0.0001289,2]
[339232472,1727385032424,-152.85,0.0001289,2]
[339232474,1727385032433,-152.85,0.0001289,2]
[339232476,1727385032443,-152.85,0.0001289,2]
[339232477,1727385032452,-152.85,0.0001289,2]
[339232478,1727385032461,-152.85,0.0001289,2]
[339232479,1727385032470,-152.85,0.0001289,2]
[339232480,1727385032481,-14897.9643993,0.00012897,2]
[339232481,1727385032490,-1000.0,0.00012899,2]
[339232482,1727385032499,-1000.0,0.00012899,2]
[339232483,1727385032508,-1000.0,0.00012899,2]
[339232484,1727385032518,-791.92,0.00012899,2]
[339232485,1727385032527,-1261.737,0.000129,2]
[339232486,1727385032536,-74487.28298987,0.000129,2]
[339232487,1727385032548,-784.34351086,0.000129,2]
[339232488,1727385032559,-966.21666469,0.000129,2]
[339232489,1727385032572,-741.8811006,0.000129,2]
[339232490,1727385032582,-5509.13788547,0.000129,2]
[339232491,1727385032594,-2329.25475404,0.000129,2]
[339232492,1727385032605,-5323.34981925,0.000129,2]
[339232493,1727385032615,-5438.28687281,0.000129,2]
[339232494,1727385032628,-6959.30203298,0.000129,2]
[339232495,1727385032640,-144673.21436943,0.000129,2]
[339232496,1727385032650,-31410.95267535,0.000129,2]
[339232497,1727385032663,-82982.30087,0.000129,2]
[339232498,1727385032679,-1367.57781629,0.000129,2]
[339232507,1727385037907,-1427.2185654,0.000129,2]
[339232508,1727385037961,-2458.28519155,0.000129,2]
[339232509,1727385037973,-615.002,0.000129,2]
[339232510,1727385037985,-6981.19796048,0.000129,2]
[339232511,1727385037996,-6525.06999584,0.000129,2]
[339232512,1727385038008,-11520.88776301,0.000129,2]
[339232513,1727385038019,-576.87446552,0.000129,2]
[339232514,1727385038030,-345.44,0.000129,2]
[339232515,1727385038041,-1239.22320358,0.000129,2]
[339232516,1727385038054,-599.9066196,0.000129,2]
[339232517,1727385038079,-597.1581044,0.000129,2]
[339232518,1727385038090,-421.399227,0.000129,2]
[339232519,1727385038101,-468.87,0.000129,2]
[339232520,1727385038112,-60473.79505154,0.000129,2]
[339232521,1727385038125,-250.485,0.000129,2]
[339232522,1727385038140,-531.06930366,0.000129,2]
[339232523,1727385038151,-918.803945,0.000129,2]
[339232524,1727385038306,-902.63081299,0.000129,2]
[339232525,1727385038320,-2000.0,0.000129,2]
[339232657,1727385039726,-719.26763437,0.000129,2]
[339232663,1727385039775,-30993.07578089,0.000129,2]
[339232670,1727385039832,-2015.94855758,0.000129,2]
[339232673,1727385039844,-359.18974162,0.000129,2]
[339232675,1727385039856,-1631.96991874,0.000129,2]
[339232680,1727385039890,-1094.57625342,0.000129,2]
[339232682,1727385039902,-395.92311807,0.000129,2]
[339232684,1727385039913,-1700.0,0.000129,2]
[339232686,1727385039924,-1383.75,0.000129,2]
[339232688,1727385039935,-477.21,0.000129,2]
[339232691,1727385039949,-840.77658634,0.000129,2]
[339232693,1727385039961,-518.424,0.000129,2]
[339232695,1727385039971,-212218.43428342,0.000129,2]
[339232697,1727385039982,-174193.9948478,0.000129,2]
[339232699,1727385039993,-34577.1301747,0.000129,2]
[339232701,1727385040004,-642.83579653,0.000129,2]
[339232704,1727385040016,-1714.25660773,0.000129,2]
[339232750,1727385040470,-1007.52312096,0.000129,2]
[339232967,1727385042822,-300.0,0.000129,2]
[339232969,1727385042834,-5200.0,0.000129,2]
[339232972,1727385042846,-34635.13712445,0.000129,2]
[339232974,1727385042857,-64861.13167189,0.000129,2]
[339232976,1727385042869,-10594.90675,0.000129,2]
[339232978,1727385042880,-177805.24882099,0.000129,2]
[339232980,1727385042892,-1306.42438939,0.000129,2]
[339232983,1727385042911,-3608.49551145,0.000129,2]
[339232986,1727385042923,-2149.47125223,0.000129,2]
[339232988,1727385042934,-1509.89121034,0.000129,2]
[339232995,1727385042995,-73187.12598657,0.000129,2]
[339232997,1727385043007,-439.30346878,0.000129,2]
[339233003,1727385043053,-12722.77961447,0.000129,2]
[339233005,1727385043064,-503.55447228,0.000129,2]
[339233007,1727385043075,-412548.6292,0.000129,2]
[339233012,1727385043111,-564.5133455,0.000129,2]
[339233014,1727385043123,-77945.30351074,0.000129,2]
[339233017,1727385043135,-3592.67573094,0.000129,2]
[339233019,1727385043147,-13779.17179148,0.000129,2]
[339233022,1727385043169,-2498.82070866,0.000129,2]
[339233025,1727385043181,-8264.97603201,0.000129,2]
[339233102,1727385046753,-64985.22474097,0.000129,2]
[339233103,1727385046793,-648.805114,0.000129,2]
[339233104,1727385086203,484.63,0.00010122,2]
[339233105,1727385105128,500.0,0.00011164,2]
[339233106,1727385111162,500.0,0.00011164,2]
[339233107,1727385132792,230.82,0.0001199,2]
[339233108,1727385157816,150.0,0.0001389,30]
[339233109,1727385272261,250.0,0.00011981,2]
[339233110,1727385347432,840.0,0.00011968,2]
[339233111,1727385634255,1050.0,0.00011,2]
[339233112,1727385637900,460.39,0.00010042,2]
[339233113,1727385693581,155.74,0.00011964,2]
[339233114,1727385744560,150.0,0.0001389,30]
[339233115,1727385811888,250.0,0.00011954,2]
[339233116,1727385840122,11512.0,0.000103,5]
[339233117,1727385840440,11512.0,0.000101,3]
[339233118,1727385840704,15944.41,0.0001,2]
[339233119,1727385840737,21072.55766845,0.0001,2]
[339233120,1727385840762,102071.03233155,0.0001,2]
[339233123,1727385955513,442.6668699,6.94e-05,2]
[339233139,1727386121189,500.0,0.00010068,2]
[339233149,1727386193217,456.71,9.851e-05,2]
[339233153,1727386227423,205.4909444,0.00011064,2]
[339233175,1727386232285,-500.0,0.00011164,2]
[339233176,1727386232294,-500.0,0.00011164,2]
[339233177,1727386232303,-500.0,0.000119,4]
[339233178,1727386232313,-1000.0,0.0001195,2]
[339233179,1727386232322,-1000.0,0.00012,4]
[339233180,1727386232332,-1600.0,0.000121,4]
[339233181,1727386232341,-456.71,0.00012115,2]
[339233182,1727386232351,-883.19,0.000122,4]
[339233201,1727386238232,-400.0,0.000122,4]
[339233202,1727386238252,-816.81,0.000122,4]
[339233203,1727386238261,-2600.0,0.000123,4]
[339233204,1727386238271,-500.0,0.000124,4]
[339233205,1727386238280,-264.3863038,0.000125,4]
[339233206,1727386238292,-235.6136962,0.000125,4]
[339233207,1727386238303,-499.99,0.000125,2]
[339233208,1727386238312,-255.42195691,0.000125,2]
[339233209,1727386238348,-829.10102755,0.000125,2]